Cogmind - Beta 16 @@@ ROGUE MODE // 2025.11.03 @ 22:39:12 Player: taku_the_hopeless Result: Destroyed by H-77 Assassin with High-powered Shotgun Performance ------------- Evolutions (7) 3500 Regions Visited (21) 4200 Robots Destroyed (242) 1210 Value Destroyed (7104) 7104 Prototype IDs (43) 860 Alien Tech Used (2) 400 Bonus (2693) 2693 TOTAL SCORE: 19967 Bonus ------- High Alert Combat Kills 580 Follower Combat Kills 540 Met Zhirov 300 MAIN.C Attacked Warlord 500 Warlord Defense Kills 468 Hacked Protovariant 500 Scanned by Researcher 500 Friendly Fire -695 Cogmind --------- Core Integrity 0/1300 Matter 172/300 Energy 52/600 System Corruption 5% Temperature Cool (0) Movement Core (50) Location -3/Testing Parts ------- > --- POWER (1) -------- (None) > --- PROPULSION (2) --- Biometal Leg > --- UTILITY (16) ----- Advanced Energy Well Advanced Visual Processing Unit Enhanced Optical Array Advanced Signal Interpreter Transport Network Coupler Advanced Melee Analysis Suite Makeshift Hacking Suite Makeshift Hacking Suite > --- WEAPON (2) ------- (None) > --- INVENTORY (5) ---- Huge Storage Unit Seismic Detector Potential Cannon Peak State ------------ > --- POWER ------------ Micro Antimatter Reactor > --- PROPULSION ------- Wheel Wheel > --- UTILITY ---------- Improved Energy Well Advanced Energy Well Experimental Energy Well Advanced Visual Processing Unit Enhanced Optical Array Advanced Signal Interpreter Transport Network Coupler Advanced Melee Analysis Suite Advanced Melee Analysis Suite Medium Regenerative Plating Medium Regenerative Plating SHELL Armor Makeshift Hacking Suite Makeshift Hacking Suite > --- WEAPON ----------- Potential Cannon > --- INVENTORY -------- Wheel Seismic Detector Light Regenerative Plating Potential Cannon [Rating: 132] Favorites ----------- Power Cooled Ion Engine Engine Cooled Ion Engine Power Core Micro Fission Core Reactor Micro Antimatter Reactor Propulsion Wheel Treads Improved Medium Treads Leg Aluminum Leg Wheel Wheel Hover Unit Backup Propulsion III Flight Unit Cooled Nuclear Pulse Thruster Utility Hacking Suite Device Seismic Detector Storage Huge Storage Unit Processor Advanced Melee Analysis Suite Hackware Hacking Suite Protection Improved Medium Armor Plating Weapon Improved Assault Rifle Energy Gun Medium Laser Energy Cannon Light EM Pulse Cannon Ballistic Gun Improved Assault Rifle Ballistic Cannon Flak Cannon Launcher Rocket Launcher Impact Weapon Power Maul Slashing Weapon Phasing Sabre Build | -11 -10 -9 -8 -7 -6 -5 -5 -5 -5 -5 -5 -4 -4 -4 -4 -4 -4 -4 -3 -3 -3 ------- Run | Yrd Mat Mat Mat Fac Fac Fac Was Fac Upp Upp Zhi Pro Fac Was Fac Upp Upp War Pro Res Tes Slots Evolved 14 | . . 2 2 2 2 2 . . . . . . 2 . . . . . . 2 . Power . | . . . . . . . . . . . . . . . . . . . . . . Propulsion . | . . . . . . . . . . . . . . . . . . . . . . Utility 14 | . . 2 2 2 2 2 . . . . . . 2 . . . . . . 2 . Weapon . | . . . . . . . . . . . . . . . . . . . . . . Parts Attached 228 | 6 17 23 21 46 32 5 3 6 1 2 7 . 12 2 1 1 1 10 2 11 19 Power 24 | 1 2 2 1 2 4 1 . 2 . 1 2 . 1 . . . . 1 . 2 2 Engine 11 | 1 2 2 1 2 2 . . . . 1 . . . . . . . . . . . Core 6 | . . . . . 1 1 . 2 . . 1 . . . . . . . . 1 . Reactor 7 | . . . . . 1 . . . . . 1 . 1 . . . . 1 . 1 2 Propulsion 49 | 2 7 5 4 11 7 . 2 2 . . 2 . . . . . . . . 2 5 Treads 2 | . . . . . 1 . . . . . . . . . . . . . . 1 . Leg 16 | 2 7 2 . . 4 . . . . . . . . . . . . . . . 1 Wheel 22 | . . 3 4 11 . . . . . . . . . . . . . . . . 4 Hover 2 | . . . . . 1 . 1 . . . . . . . . . . . . . . Flight 7 | . . . . . 1 . 1 2 . . 2 . . . . . . . . 1 . Utility 103 | 1 3 7 9 23 18 2 . 2 . 1 3 . 11 2 1 1 . 3 2 5 9 Device 36 | . 1 1 3 10 6 1 . . . 1 1 . 3 2 1 . . 1 1 3 1 Storage 11 | 1 1 2 1 1 1 . . . . . . . . . . . . . . . 4 Processor 22 | . . 2 . 3 6 1 . 1 . . . . 5 . . 1 . . 1 2 . Hackware 14 | . 1 . . 1 5 . . 1 . . 1 . 3 . . . . 2 . . . Protection 20 | . . 2 5 8 . . . . . . 1 . . . . . . . . . 4 Artifact . | . . . . . . . . . . . . . . . . . . . . . . Weapon 52 | 2 5 9 7 10 3 2 1 . 1 . . . . . . . 1 6 . 2 3 Energy Gun 4 | 1 . . . . . . . . . . . . . . . . . 3 . . . Energy Cannon 8 | . . 2 1 . . . . . . . . . . . . . . 2 . . 3 Ballistic Gun 23 | 1 4 6 6 5 . . . . . . . . . . . . . . . 1 . Ballistic Cannon 5 | . . . . 4 . . . . . . . . . . . . 1 . . . . Launcher 6 | . 1 1 . 1 . 1 1 . . . . . . . . . . 1 . . . Special Weapon . | . . . . . . . . . . . . . . . . . . . . . . Impact Weapon 3 | . . . . . 2 1 . . . . . . . . . . . . . . . Slashing Weapon 3 | . . . . . 1 . . . 1 . . . . . . . . . . 1 . Piercing Weapon . | . . . . . . . . . . . . . . . . . . . . . . Special Melee Weapon . | . . . . . . . . . . . . . . . . . . . . . . Unidentified Prototypes 28 | . . 2 2 . 4 1 1 . . . 4 . . 1 . . . 3 . 2 8 Parts Lost 49 | . . . 2 15 2 1 . . 1 . . 3 1 . 1 . . . 1 6 16 Power 6 | . . . . 1 1 1 . . . . . . . . . . . . 1 . 2 Propulsion 10 | . . . 1 4 1 . . . . . . . . . . . . . . . 4 Utility 30 | . . . 1 9 . . . . 1 . . 3 1 . 1 . . . . 6 8 Weapon 3 | . . . . 1 . . . . . . . . . . . . . . . . 2 Highest Loss Streak 7 | . . . 1 7 2 1 . . 1 . . 3 1 . 1 . . . 1 2 6 To Critical Strikes . | . . . . . . . . . . . . . . . . . . . . . . Average Backups 14 | 4 10 18 23 23 3 3 3 4 4 4 4 5 4 4 4 4 5 3 4 3 3 Power . | . . . 1 1 . . . . 1 1 . . . . . . . . . . . Propulsion 1 | 2 3 2 1 1 . . . . . . . . . . . . . . . . . Utility 5 | . 1 5 9 10 2 2 2 2 2 2 2 3 2 3 3 3 4 1 . . 1 Weapon 5 | . 4 8 10 9 . 1 1 1 1 1 1 1 1 . . . . 1 3 2 1 Tool/Special . | . . . . . . . . . . . . . . . . . . . . . . Unused Backups 59 | . 6 6 12 16 11 . . 1 . . 1 . 1 . . 1 . 3 . . 1 Power 2 | . . . 1 1 . . . . . . . . . . . . . . . . . Propulsion 16 | . 4 5 4 1 1 . . . . . . . . . . . . . . . 1 Utility 23 | . . 1 2 8 6 . . 1 . . 1 . 1 . . . . 3 . . . Weapon 17 | . 2 . 4 6 4 . . . . . . . . . . 1 . . . . . Tool/Special 1 | . . . 1 . . . . . . . . . . . . . . . . . . Average Slot Usage (%) 90 | . 96 98 91 93 73 85 94 93 94 90 93 86 88 94 94 94 94 93 88 80 66 Engine 5 | . 14 10 8 6 2 . . . . . . . . . . . . . . . . Core 1 | . . . . . 2 4 5 5 5 5 4 5 5 5 5 5 5 3 . . . Leg 4 | . 28 5 . . 9 . . . . . . . . . . . . . . . . Wheel 8 | . . 16 17 13 . . . . . . . . . . . . . . . . 2 Flight 2 | . . . . . 1 5 6 10 11 11 11 11 10 10 10 10 10 10 10 8 3 Device 11 | . 3 3 8 18 9 21 23 23 23 19 20 10 9 10 12 21 21 15 15 9 2 Storage 5 | . 14 11 9 6 . . . . . . . . . . . . . . . . 2 Processor 15 | . . 6 9 15 13 17 17 22 23 23 23 23 29 36 34 31 31 31 31 33 27 Hackware 12 | . 8 11 9 1 28 29 29 23 23 23 23 21 23 26 25 21 21 21 21 18 9 Protection 6 | . . 10 10 12 . . . . . . 1 5 4 . . . . 4 5 4 9 Ballistic Gun 10 | . 24 19 17 11 . . . . . . . . . . . . . . . 2 . Peak Build Rating 132 | 6 11 22 31 45 57 65 86 78 77 75 85 85 99 97 95 89 93 106 92 103 132 Average Rating 45 | 4 9 19 29 39 43 61 75 74 75 73 79 76 85 89 93 88 89 89 90 90 88 On Entrance 60 | . 6 11 22 30 1 52 65 71 75 72 75 85 68 88 95 88 89 89 90 84 70 Avg Prop Armor Cover (%) 13 | . . 6 . . 21 . 3 5 5 5 4 9 . . . . . . 12 5 27 Naked Turns 115 | . . . . 32 83 . . . . . . . . . . . . . . . . Heaviest Build 164 | 12 31 96 112 127 15 24 24 17 13 19 26 12 21 25 13 13 13 24 11 23 164 Greatest Support 42 | 20 20 30 32 28 42 17 38 23 17 24 24 15 12 12 21 21 21 21 21 18 20 Greatest Overweight (x) 11 | . 1 4 11 9 1 1 1 . . . 1 3 1 2 . . . 1 . 3 9 Average Overweight (x) 1 | . . 2 4 4 . . . . . . . . . . . . . . . . 1 Largest Inventory Capacity 25 | 8 15 25 25 25 20 5 5 5 5 5 5 5 5 5 5 5 5 5 5 5 25 Average Capacity 15 | 6 12 21 25 24 5 5 5 5 5 5 5 5 5 5 5 5 5 5 5 5 5 Most Carried 25 | 6 15 25 25 25 5 5 5 5 5 5 5 5 5 5 5 5 5 5 5 5 5 Average Carried 15 | 4 10 20 24 24 4 4 4 4 5 5 4 5 4 4 4 4 5 4 5 4 3 Final Capacity 25 | 8 15 25 25 5 5 5 5 5 5 5 5 5 5 5 5 5 5 5 5 5 5 Final Carried 25 | 6 15 25 25 5 5 5 5 5 5 5 5 5 5 5 4 5 5 5 5 5 4 Class Distribution -------------------- 58% | Mutant 15% | Hacker-Mutant 11% | Hacker-Ninja 7% | Hacker-Sprinter 5% | Scavenger-Mutant Dominant Class ---------------- Mutant | -10/Materials Mutant | -9/Materials Mutant | -8/Materials Mutant | -7/Factory Hacker-Mutant | -6/Factory Hacker-Mutant | -5/Factory Hacker-Mutant | -5/Waste Hacker-Ninja | -5/Factory Hacker-Ninja | -5/Upper Caves Hacker-Ninja | -5/Upper Caves Hacker-Ninja | -5/Zhirov Hacker-Sprinter | -4/Proximity Caves Hacker-Ninja | -4/Factory Hacker-Scout | -4/Waste Hacker-Ninja | -4/Factory Hacker-Ninja | -4/Upper Caves Hacker-Ninja | -4/Upper Caves Hacker-Sprinter | -4/Warlord Hacker-Sprinter | -3/Proximity Caves Hacker-Sprinter | -3/Research Hacker-Mutant | -3/Testing Resources | -11 -10 -9 -8 -7 -6 -5 -5 -5 -5 -5 -5 -4 -4 -4 -4 -4 -4 -4 -3 -3 -3 ----------- Run | Yrd Mat Mat Mat Fac Fac Fac Was Fac Upp Upp Zhi Pro Fac Was Fac Upp Upp War Pro Res Tes Matter Collected 7323 | 302 607 380 1206 2780 358 72 406 70 20 30 . . 270 30 13 22 10 250 30 145 322 Remotely 506 | . . . 295 211 . . . . . . . . . . . . . . . . . Salvage Created 9914 | 167 764 536 2047 2994 395 . 678 236 20 64 . . 686 . 117 108 . 91 . 213 798 Parts 462 | 10 51 27 140 134 13 . 4 3 . 7 . . 32 . 5 2 . 2 . 5 27 Haulers Intercepted 13 | . 1 . 6 1 1 . . . . . . . 2 . 1 . . . . 1 . Recyclers Shooed 19 | . 1 1 2 13 1 . . . . . . . . . . . . . . 1 . Parts Field Recycled . | . . . . . . . . . . . . . . . . . . . . . . Retrieved Matter . | . . . . . . . . . . . . . . . . . . . . . . Parts Self-Destructed 3 | . . . . . . . . . . . . 3 . . . . . . . . . Prevented . | . . . . . . . . . . . . . . . . . . . . . . Parts Restored . | . . . . . . . . . . . . . . . . . . . . . . Kills | -11 -10 -9 -8 -7 -6 -5 -5 -5 -5 -5 -5 -4 -4 -4 -4 -4 -4 -4 -3 -3 -3 ------- Run | Yrd Mat Mat Mat Fac Fac Fac Was Fac Upp Upp Zhi Pro Fac Was Fac Upp Upp War Pro Res Tes Combat Hostiles Destroyed 141 | . 21 3 36 54 . . 3 1 . . . . 2 . . . . 4 . . 17 Melee 2 | . . . . . . . . . . . . . 2 . . . . . . . . Guns 69 | . 15 3 18 32 . . . . . . . . . . . . . . . . 1 Cannons 20 | . . . 1 13 . . . . . . . . . . . . . 4 . . 2 AOE 49 | . 6 . 17 9 . . 3 . . . . . . . . . . . . . 14 Classes Destroyed 24 | 3 5 2 3 4 . . 1 . 1 1 . . 1 . . . . . . . 3 Worker 17 | 1 . 1 3 7 1 . . . . . . . 1 . 2 . . . . . 1 Builder 22 | . 2 1 6 4 3 . . . . . . . 2 . . . . . . . 4 Tunneler 5 | 2 1 . . 2 . . . . . . . . . . . . . . . . . Hauler 13 | . 1 . 6 1 1 . . . . . . . 2 . 1 . . . . 1 . Recycler 31 | 1 1 4 5 13 2 . . 2 . . . . 1 . . . . . . 1 1 Minesweeper 1 | . . . . . . . . . 1 . . . . . . . . . . . . Mechanic 1 | . . . . . . . . . . . . . 1 . . . . . . . . Operator 6 | . 2 . 1 . 1 . . . . . . . 1 . . . . . . . 1 Drone 3 | . . . . . . . . . . . . . . . . . . . . . 3 Watcher 10 | . . 2 4 1 . . . . . . . . 3 . . . . . . . . Swarmer 33 | . 9 . 14 8 . . . . . . . . 1 . . . . 1 . . . Grunt 57 | . 12 . 11 19 . . . 1 . . . . . . . . . 3 . . 11 Brawler 2 | . . . 1 . . . . . . . . . . . . . . . . . 1 Duelist 2 | . . . 1 1 . . . . . . . . . . . . . . . . . Researcher 2 | . . . . . . . . . . . . . . . . . . . . . 2 Sentry 15 | . . 3 8 3 . . . . . . . . 1 . . . . . . . . Demolisher 2 | . . . . 2 . . . . . . . . . . . . . . . . . Specialist 4 | . . . . 4 . . . . . . . . . . . . . . . . . Hunter 3 | . . . 1 1 . . . . . . . . . . . . . . . . 1 Programmer 8 | . . . . 8 . . . . . . . . . . . . . . . . . Q-Series 1 | . . . . . . . . . . . . . . . . . . . . . 1 Compactor 3 | . . . . . . . 3 . . . . . . . . . . . . . . Investigator 1 | . . . . . . . . . . . . . . . . . . . . . 1 Decomposer 1 | . . . . . . . . . . 1 . . . . . . . . . . . Samaritan 3 | . . . . . . . . . . 1 . . . . . 2 . . . . . Assembled 8 | . . . . 8 . . . . . . . . . . . . . . . . . Wasp 3 | . . . . . . . 3 . . . . . . . . . . . . . . Best Kill Streak 10 | 4 9 3 10 10 2 . 2 1 1 . . . 7 . 2 . . 4 . 1 9 Combat Bots Only 10 | . 9 1 8 10 . . 2 1 . . . . 2 . . . . 4 . . 4 Max Kills in Single Turn 6 | 1 2 1 4 6 1 . 3 1 1 1 . . 1 . 1 1 . 1 . 1 4 Gunslinging . | . . . . . . . . . . . . . . . . . . . . . . Exploded 4 | . 2 . 3 4 . . 1 . . . . . . . . . . . . . 3 Melee 1 | . . . . . . . . . . . . . 1 . . . . . . . . Uniques/NPCs Destroyed . | . . . . . . . . . . . . . . . . . . . . . . Combat | -11 -10 -9 -8 -7 -6 -5 -5 -5 -5 -5 -5 -4 -4 -4 -4 -4 -4 -4 -3 -3 -3 -------- Run | Yrd Mat Mat Mat Fac Fac Fac Was Fac Upp Upp Zhi Pro Fac Was Fac Upp Upp War Pro Res Tes Hostile Shots Fired 1180 | . 99 10 133 479 15 2 . 16 14 . . 36 10 . 2 10 6 4 2 56 286 Missed 401 | . 29 5 36 151 8 1 . 12 6 . . 20 5 . 1 7 4 1 1 29 85 Hits 779 | . 70 5 97 328 7 1 . 4 8 . . 16 5 . 1 3 2 3 1 27 201 Melee 9 | . . . . 9 . . . . . . . . . . . . . . . . . Projectile 770 | . 70 5 97 319 7 1 . 4 8 . . 16 5 . 1 3 2 3 1 27 201 AOE 15 | . . . . 14 . . . . . . . . . . . . . . . . 1 Critical Strikes 30 | . 1 . 5 11 . . . . . . . 1 . . 1 . . . . 1 10 Actively Blocked 1 | . . . . . . . . . . . . . . . . . . . . . 1 Part Disruptions 1 | . . . . . . . . . . . . . . . . . . . . . 1 Damage Taken 12205 | . 685 85 1124 3947 239 117 39 76 122 . . 281 82 . 21 62 22 113 25 779 4386 Core 2528 | . 110 . 158 534 178 . 13 . 95 . . 134 30 . . . . 21 . 473 782 Absorbed by Shields 1271 | . . . 74 924 . . . . . . . . . . . . . . . . 273 Redirected to Shielding 214 | . . . . . . . . . . . . 42 . . . . . 30 . 61 81 Ignored by Resistances 53 | . . . . 53 . . . . . . . . . . . . . . . . . Regen/Repaired (Parts) 891 | . . . 179 244 . . 15 . . . . . 42 . . . . 24 . . 387 Core Remaining (%) 74 | 100 56 100 71 23 79 . . . . . . 75 . . . . . . 95 . . Volleys Fired 548 | 14 79 17 112 227 . 1 12 . . . . . . . . . . 17 . 31 38 Largest 2 | 2 2 2 2 2 . 1 1 . . . . . . . . . . 1 . 1 1 Hottest 200 | 70 70 112 112 112 . 52 52 . . . . . . . . . . 50 . 45 200 Shots Fired 961 | 28 155 34 211 435 . 1 12 . . . . . . . . . . 17 . 31 37 Gun 783 | 28 150 28 180 345 . . . . . . . . . . . . . . . 31 21 Cannon 124 | . . 4 11 80 . . . . . . . . . . . . . 17 . . 12 Launcher 54 | . 5 2 20 10 . 1 12 . . . . . . . . . . . . . 4 Special . | . . . . . . . . . . . . . . . . . . . . . . Kinetic 788 | 14 118 28 180 423 . . . . . . . . . . . . . . . 25 . Thermal 58 | 14 32 . . . . . . . . . . . . . . . . . . . 12 Explosive 50 | . 5 2 20 10 . 1 12 . . . . . . . . . . . . . . Electromagnetic 17 | . . 4 11 2 . . . . . . . . . . . . . . . . . Entropic 48 | . . . . . . . . . . . . . . . . . . 17 . 6 25 Robot Hit Streak 45 | 4 15 9 17 45 . . 2 . . . . . . . . . . 3 . 7 12 Robot Miss Streak 7 | 2 6 3 2 7 . . 2 . . . . . . . . . . 3 . 1 4 Penetration Max 1 | . . . . 1 . . . . . . . . . . . . . . . . 1 Secondary Targets 10 | . 3 . 3 4 . . . . . . . . . . . . . . . . . Max Gunslinging Chain 1 | . 1 . 1 1 . . . . . . . . . . . . . . . . . Shots Hit Robots 656 | 17 88 19 142 298 12 . 4 3 2 3 . . 22 . 5 3 . 8 . 9 21 Core Hits 421 | 5 45 14 94 186 3 . 12 1 . 1 . . 12 . 2 2 . 4 . 4 36 Critical Kills 5 | . . . 1 4 . . . . . . . . . . . . . . . . . Critical Parts Destroyed 9 | . 1 . 1 2 1 . . 1 . . . . . . . . . . . . 3 Critical Strikes 31 | 3 4 . 3 10 1 . . 1 . . . . 2 . 1 . . 3 . . 3 Burn 6 | 3 3 . . . . . . . . . . . . . . . . . . . . Destroy 9 | . 1 . 2 6 . . . . . . . . . . . . . . . . . Blast 4 | . . . . 4 . . . . . . . . . . . . . . . . . Corrupt 1 | . . . 1 . . . . . . . . . . . . . . . . . . Smash 2 | . . . . . 1 . . 1 . . . . . . . . . . . . . Sever 3 | . . . . . . . . . . . . . 2 . 1 . . . . . . Detonate 3 | . . . . . . . . . . . . . . . . . . . . . 3 Sunder 3 | . . . . . . . . . . . . . . . . . . 3 . . . Melee Attacks 139 | . . . . . 34 10 . 17 8 3 . . 43 . 14 7 3 . . . . Impact 49 | . . . . . 16 10 . 17 6 . . . . . . . . . . . . Slashing 90 | . . . . . 18 . . . 2 3 . . 43 . 14 7 3 . . . . Piercing . | . . . . . . . . . . . . . . . . . . . . . . Sneak Attacks 34 | . . . . . 10 . . 3 1 3 . . 11 . 3 3 . . . . . Combat Hostiles 1 | . . . . . . . . 1 . . . . . . . . . . . . . Follow-up Attacks . | . . . . . . . . . . . . . . . . . . . . . . Damage Inflicted 26309 | 227 1552 333 3584 7501 981 . 2067 323 203 287 . . 1738 . 409 285 . 693 . 237 5889 Guns 8843 | 227 1083 244 2030 4409 . . . . . . . . . . . . . . . 237 613 Cannons 3205 | . . 72 142 1283 . . . . . . . . . . . . . 693 . . 1015 Explosions 9962 | . 427 17 1412 1778 . . 2067 . . . . . . . . . . . . . 4261 Melee 4207 | . . . . . 962 . . 323 203 287 . . 1738 . 409 285 . . . . . Ramming 92 | . 42 . . 31 19 . . . . . . . . . . . . . . . . Kinetic 9114 | 101 860 244 2030 5642 . . . . . . . . . . . . . . . 237 . Thermal 3596 | 126 223 . 96 599 . . . . . . . . . . . . . . . . 2552 Explosive 5120 | . 427 17 1316 1179 . . 2067 . . . . . . . . . . . . . 114 Electromagnetic 264 | . . 72 142 50 . . . . . . . . . . . . . . . . . Impact 930 | . . . . . 466 . . 323 141 . . . . . . . . . . . . Slashing 3277 | . . . . . 496 . . . 62 287 . . 1738 . 409 285 . . . . . Piercing . | . . . . . . . . . . . . . . . . . . . . . . Entropic 3916 | . . . . . . . . . . . . . . . . . . 693 . . 3223 Highest Corruption 18 | . 2 . . 18 . . . . . . . . . . . . . . . 3 5 Average Corruption 5 | . 2 . . 6 . . . . . . . . . . . . . . . 2 4 Corruption Purged . | . . . . . . . . . . . . . . . . . . . . . . Corruption Blocked . | . . . . . . . . . . . . . . . . . . . . . . Effects 124 | . 14 . . 97 . . . . . . . . . . . . . . . 3 10 Message Errors 32 | . 3 . . 25 . . . . . . . . . . . . . . . 2 2 Matter Fused 27 | . 2 . . 23 . . . . . . . . . . . . . . . . 2 Heat Flow Errors 13 | . . . . 11 . . . . . . . . . . . . . . . . 2 Energy Discharges 17 | . 6 . . 9 . . . . . . . . . . . . . . . . 2 Parts Rejected 3 | . . . . 2 . . . . . . . . . . . . . . . . 1 Parts Fused 2 | . 2 . . . . . . . . . . . . . . . . . . . . Data Loss (minor) 9 | . . . . 8 . . . . . . . . . . . . . . . 1 . Data Loss (major) 6 | . . . . 6 . . . . . . . . . . . . . . . . . Misfires 4 | . 1 . . 3 . . . . . . . . . . . . . . . . . Alerts 5 | . . . . 5 . . . . . . . . . . . . . . . . . Weapon Failures 6 | . . . . 5 . . . . . . . . . . . . . . . . 1 Overload Shots . | . . . . . . . . . . . . . . . . . . . . . . Overflow Damage 2027 | . 10 6 61 309 443 . . 181 109 111 . . 249 . 76 57 . 8 . . 407 Projectiles 208 | . . 6 . 55 . . . . . . . . . . . . . 8 . . 139 Explosions 593 | . 10 . 61 254 . . . . . . . . . . . . . . . . 268 Melee 1226 | . . . . . 443 . . 181 109 111 . . 249 . 76 57 . . . . . Knockbacks 18 | . . . . 16 1 . . 1 . . . . . . . . . . . . . Impact 2 | . . . . . 1 . . 1 . . . . . . . . . . . . . Kinetic 15 | . . . . 15 . . . . . . . . . . . . . . . . . Secondary 1 | . . . . 1 . . . . . . . . . . . . . . . . . Self-Inflicted Damage 940 | . . 18 9 140 9 . 41 . . . . . . . . . . . . . 723 Shots 12 | . . 1 1 2 . . 1 . . . . . . . . . . . . . 7 Rammed 13 | . . . 1 9 3 . . . . . . . . . . . . . . . . Targets Rammed 23 | . 10 . 1 9 3 . . . . . . . . . . . . . . . . Kicked 10 | . 10 . . . . . . . . . . . . . . . . . . . . Crushed . | . . . . . . . . . . . . . . . . . . . . . . Highest Temperature 256 | 45 192 102 114 256 . . . . . . . . . . . . . . . . 243 Average Temperature 49 | 17 66 22 27 55 . . . . . . . . . . . . . . . . 74 Received Heat Transfer 2128 | . 243 27 402 925 18 9 . 27 . . . 66 9 . . . . . . 84 318 Siege Activations . | . . . . . . . . . . . . . . . . . . . . . . Martial Activations . | . . . . . . . . . . . . . . . . . . . . . . Shielding Activations . | . . . . . . . . . . . . . . . . . . . . . . Robots Disrupted . | . . . . . . . . . . . . . . . . . . . . . . Combat Hostiles . | . . . . . . . . . . . . . . . . . . . . . . Robots Corrupted 4 | . . . . . 1 . . 2 1 . . . . . . . . . . . . Combat Hostiles 1 | . . . . . . . . 1 . . . . . . . . . . . . . Parts Fried 10 | . . 1 . . 4 . . 2 2 . . . . . . . . . . . 1 Impact Corruptions 15 | . . . . . 9 . . 4 2 . . . . . . . . . . . . Robots Melted . | . . . . . . . . . . . . . . . . . . . . . . Combat Hostiles . | . . . . . . . . . . . . . . . . . . . . . . Parts Melted 3 | . 1 . . . . . . . . . . . 2 . . . . . . . . Heat Transferred 3840 | 592 888 . 50 350 . . . . . . . . . . . . . . . . 1960 Parts Sabotaged . | . . . . . . . . . . . . . . . . . . . . . . Parts Stolen . | . . . . . . . . . . . . . . . . . . . . . . Parts Stripped . | . . . . . . . . . . . . . . . . . . . . . . Power Chain Reactions 1 | . . . . 1 . . . . . . . . . . . . . . . . . Alert | -11 -10 -9 -8 -7 -6 -5 -5 -5 -5 -5 -5 -4 -4 -4 -4 -4 -4 -4 -3 -3 -3 ------- Run | Yrd Mat Mat Mat Fac Fac Fac Was Fac Upp Upp Zhi Pro Fac Was Fac Upp Upp War Pro Res Tes Maximum Alert Level 3 | . . . 2 3 2 1 1 3 . . . . . . . . . . . 1 2 Low Security (%) 50 | 100 100 100 11 47 . 15 77 16 . . . . 100 100 100 . . . . 79 17 Level 1 19 | . . . 15 14 86 84 22 12 . . . . . . . . . . . 20 36 Level 2 21 | . . . 73 13 13 . . 10 . . . . . . . . . . . . 45 Level 3 8 | . . . . 25 . . . 61 . . . . . . . . . . . . . Level 4 . | . . . . . . . . . . . . . . . . . . . . . . Level 5 . | . . . . . . . . . . . . . . . . . . . . . . High Security . | . . . . . . . . . . . . . . . . . . . . . . Max Security . | . . . . . . . . . . . . . . . . . . . . . . Peak Influence 855 | 10 189 55 569 831 444 326 231 855 . . . . 127 84 58 . . . . 312 675 Initial 404 | . 3 55 . 90 404 181 95 100 . . . . 44 39 51 . . . . . 121 Average 265 | 1 74 7 408 348 331 285 156 617 . . . . 47 38 36 . . . . 117 365 Influence Increases 8258 | 20 608 164 1349 1601 533 201 188 1148 5 . . 150 338 94 65 15 . 155 . 664 960 Destroy 0b10 Robot/C 3000 | . 420 60 720 920 20 . . 340 . . . . 60 . . . . 80 . . 380 Destroy 0b10 Robot/NC 560 | 20 35 40 125 140 40 . . 40 5 . . . 55 . 15 . . . . 10 35 Destroy Leader 710 | . 82 34 210 224 12 . . 84 . . . . 30 . 2 . . . . 2 30 Allied During Kill 246 | . . . . . 5 . . 241 . . . . . . . . . . . . . Successful Hack 374 | . 4 10 57 100 2 14 . 14 . . . . 52 . 28 . . . . 93 . Disable Machine 765 | . 30 . 120 135 30 90 . 180 . . . . 30 . . . . . . . 150 Destroy Structure 1148 | . 37 20 102 82 19 82 188 144 . . . . 36 94 20 . . . . 34 290 Partial Spotted 150 | . . . . . 30 . . 45 . . . . 15 . . . . . . 60 . Lose Combat Pursuer 1305 | . . . 15 . 375 15 . 60 . . . 150 60 . . 15 . 75 . 465 75 Influence Decreases 7583 | 15 480 297 1150 974 988 300 317 483 400 140 273 80 294 134 123 31 . 82 73 448 501 Entered New Map 1973 | . 2 78 . 109 422 190 177 43 300 80 273 . 26 75 23 7 . . 73 . 95 Time Decay 4205 | 15 478 219 670 715 506 100 140 190 90 60 . 50 258 59 70 24 . 82 . 233 246 Search Patrol Dispatched 100 | . . . . . . . . . . . . . . . . . . . . 100 . Lost Part 475 | . . . 20 150 20 10 . . 10 . . 30 10 . 10 . . . . 55 160 Lost Ally 380 | . . . 10 . 40 . . 250 . . . . . . 20 . . . . 60 . Purge Threat 450 | . . . 450 . . . . . . . . . . . . . . . . . . Squads Dispatched 62 | . 4 2 6 18 6 1 . 8 . . . . 3 . 2 . . . . 4 8 Investigation 19 | . 2 2 . 6 . 1 . 4 . . . . 1 . 1 . . . . . 2 Extermination 16 | . . . . 7 3 . . 1 . . . . 2 . . . . . . 2 1 Reinforcement 21 | . 2 . 3 4 3 . . 2 . . . . . . 1 . . . . 2 4 Assault 2 | . . . . 1 . . . . . . . . . . . . . . . . 1 Garrison 4 | . . . 3 . . . . 1 . . . . . . . . . . . . . Intercept . | . . . . . . . . . . . . . . . . . . . . . . Searches Triggered 1 | . . . . . . . . . . . . . . . . . . . . 1 . Unchained Authorized 2 | . . . . . . . . . . . . . . . 1 1 . . . . . Construction Impeded 3 | . . . 1 1 . . . 1 . . . . . . . . . . . . . Haulers Reinforced 4 | . . . . 1 1 . . 1 . . . . . . 1 . . . . . . Active Scanning Responses . | . . . . . . . . . . . . . . . . . . . . . . Cargo Convoy Interrupts . | . . . . . . . . . . . . . . . . . . . . . . Stealth | -11 -10 -9 -8 -7 -6 -5 -5 -5 -5 -5 -5 -4 -4 -4 -4 -4 -4 -4 -3 -3 -3 --------- Run | Yrd Mat Mat Mat Fac Fac Fac Was Fac Upp Upp Zhi Pro Fac Was Fac Upp Upp War Pro Res Tes Distress Signals 25 | . 3 2 6 2 1 . . 2 . . . . 3 . . . . . . 2 4 Communications Jammed . | . . . . . . . . . . . . . . . . . . . . . . Distress Signals . | . . . . . . . . . . . . . . . . . . . . . . Times Spotted 390 | . 35 7 49 76 30 1 4 19 5 . . 9 21 1 4 5 1 43 1 39 40 Peak Tracking Total 10 | . 5 2 5 5 8 1 3 9 5 . . 7 7 2 4 4 1 9 1 10 7 Tactical Retreats 45 | . . . 1 1 13 1 . 3 . . . 3 4 . . 1 . 2 . 14 2 ECM-based Alert Blocks 4 | . . . . . . . . . . . . . 4 . . . . . . . . Traps | -11 -10 -9 -8 -7 -6 -5 -5 -5 -5 -5 -5 -4 -4 -4 -4 -4 -4 -4 -3 -3 -3 ------- Run | Yrd Mat Mat Mat Fac Fac Fac Was Fac Upp Upp Zhi Pro Fac Was Fac Upp Upp War Pro Res Tes Traps Triggered 20 | . 3 . . 7 2 2 . . . . . . 2 . . . . . . 4 . Indirectly . | . . . . . . . . . . . . . . . . . . . . . . Trap Hack Attempts . | . . . . . . . . . . . . . . . . . . . . . . Triggered . | . . . . . . . . . . . . . . . . . . . . . . Disarmed . | . . . . . . . . . . . . . . . . . . . . . . Reprogrammed . | . . . . . . . . . . . . . . . . . . . . . . Reused . | . . . . . . . . . . . . . . . . . . . . . . Traps Extracted . | . . . . . . . . . . . . . . . . . . . . . . Installed . | . . . . . . . . . . . . . . . . . . . . . . Triggered . | . . . . . . . . . . . . . . . . . . . . . . Machines | -11 -10 -9 -8 -7 -6 -5 -5 -5 -5 -5 -5 -4 -4 -4 -4 -4 -4 -4 -3 -3 -3 ---------- Run | Yrd Mat Mat Mat Fac Fac Fac Was Fac Upp Upp Zhi Pro Fac Was Fac Upp Upp War Pro Res Tes Machines Disabled 57 | . 2 . 8 9 2 6 . 12 . . . . 2 . . . . 2 . . 14 Max in Single Turn 5 | . 1 . 3 5 1 5 . 1 . . . . 1 . . . . 1 . . 2 Garrison Access 5 | . . . 1 1 1 . . 2 . . . . . . . . . . . . . Machines Repaired . | . . . . . . . . . . . . . . . . . . . . . . Machines Dismantled . | . . . . . . . . . . . . . . . . . . . . . . Machines Sabotaged . | . . . . . . . . . . . . . . . . . . . . . . Overloaded Fab Kills . | . . . . . . . . . . . . . . . . . . . . . . Hacking | -11 -10 -9 -8 -7 -6 -5 -5 -5 -5 -5 -5 -4 -4 -4 -4 -4 -4 -4 -3 -3 -3 --------- Run | Yrd Mat Mat Mat Fac Fac Fac Was Fac Upp Upp Zhi Pro Fac Was Fac Upp Upp War Pro Res Tes Machines Accessed 106 | . 6 8 14 21 15 3 . 5 . 1 4 . 13 . 2 . . 2 . 7 5 Terminals 55 | . 6 6 9 10 8 2 . 1 . . . . 4 . 1 . . . . 4 4 Fabricators 13 | . . . . 4 2 1 . 1 . . . . 2 . 1 . . . . 2 . Repair Stations 11 | . . . 2 5 2 . . . . . . . 2 . . . . . . . . Recycling Units 6 | . . 1 . . 2 . . 1 . . . . 1 . . . . . . 1 . Scanalyzers 8 | . . 1 2 . . . . . . . . . 4 . . . . . . . 1 Garrison Access 6 | . . . 1 2 1 . . 2 . . . . . . . . . . . . . Total Hacks 335 | . 18 30 51 47 45 13 . 12 . 1 17 . 40 . 9 . . 3 . 26 23 Successful 222 | . 13 23 34 18 30 9 . 8 . 1 17 . 31 . 7 . . 3 . 14 14 Failed 112 | . 5 7 16 29 15 4 . 4 . . . . 9 . 2 . . . . 12 9 Catastrophic 13 | . . . 4 5 3 . . . . . . . . . . . . . . . 1 Database Lockouts 1 | . . . 1 . . . . . . . . . . . . . . . . . . Manual 137 | . 13 15 23 16 17 8 . 4 . . . . 20 . 2 . . . . 13 6 Terminals 203 | . 18 22 38 26 18 10 . 4 . . . . 22 . 5 . . . . 19 21 Fabricators 37 | . . . . 9 8 3 . 3 . . . . 4 . 4 . . . . 6 . Repair Stations 25 | . . . 8 10 4 . . . . . . . 3 . . . . . . . . Recycling Units 22 | . . 1 . . 14 . . 2 . . . . 4 . . . . . . 1 . Scanalyzers 19 | . . 7 3 . . . . . . . . . 7 . . . . . . . 2 Garrison Access 8 | . . . 2 2 1 . . 3 . . . . . . . . . . . . . Terminal Hacks 91 | . 4 5 13 2 6 4 . 1 . 1 17 . 12 . 4 . . 3 . 8 11 Record 10 | . . . . . . . . . . . 5 . 1 . 1 . . 2 . 1 . Part Schematic 5 | . . . . . . 1 . . . . 4 . . . . . . . . . . Robot Analysis 8 | . 1 1 1 . . . . . . . 4 . . . 1 . . . . . . Prototype ID Bank 6 | . . . . . . . . 1 . . 4 . . . . . . . . . 1 Open Door 3 | . . . . . . . . . . 1 . . . . . . . 1 . . 1 Level Access Points 1 | . . . . . . . . . . . . . 1 . . . . . . . . Branch Access Points 7 | . . . 1 1 1 1 . . . . . . 1 . 1 . . . . 1 . Emergency Access Points 1 | . . . . . . . . . . . . . . . . . . . . . 1 Terminal Index 9 | . 1 1 1 . 1 1 . . . . . . 1 . 1 . . . . 1 1 Fabricator Index 1 | . . . . . . . . . . . . . . . . . . . . 1 . Alert Level 2 | . . . 1 . . . . . . . . . 1 . . . . . . . . Unreport Threat 3 | . . . 3 . . . . . . . . . . . . . . . . . . Locate Traps 2 | . . . . . . . . . . . . . . . . . . . . 1 1 Transport Status 1 | . . . . . . . . . . . . . 1 . . . . . . . . Recall Extermination 1 | . . . . . 1 . . . . . . . . . . . . . . . . Recall Reinforcements 1 | . . . . . 1 . . . . . . . . . . . . . . . . Hauler Manifests 8 | . 1 1 1 1 1 1 . . . . . . 1 . . . . . . . 1 Registered Components 5 | . . 1 2 . . . . . . . . . 1 . . . . . . 1 . Registered Prototypes 1 | . . . 1 . . . . . . . . . . . . . . . . . . Zone Layout 13 | . 1 1 2 . 1 . . . . . . . 4 . . . . . . 2 2 Protovariant Controls 3 | . . . . . . . . . . . . . . . . . . . . . 3 Fabricator Hacks 20 | . . . . 4 3 2 . 3 . . . . 3 . 2 . . . . 3 . Network Status 9 | . . . . 1 1 1 . 1 . . . . 2 . 1 . . . . 2 . Load Schematic 4 | . . . . 1 . 1 . 1 . . . . . . 1 . . . . . . Build 7 | . . . . 2 2 . . 1 . . . . 1 . . . . . . 1 . Repair Station Hacks 18 | . . . 8 7 1 . . . . . . . 2 . . . . . . . . Scan Component 9 | . . . 4 4 . . . . . . . . 1 . . . . . . . . Repair 8 | . . . 4 3 . . . . . . . . 1 . . . . . . . . Refit 1 | . . . . . 1 . . . . . . . . . . . . . . . . Recycling Unit Hacks 16 | . . 1 . . 12 . . 1 . . . . 1 . . . . . . 1 . Recycle Component 3 | . . . . . 3 . . . . . . . . . . . . . . . . Process 3 | . . . . . 3 . . . . . . . . . . . . . . . . Report Inventory 6 | . . 1 . . 2 . . 1 . . . . 1 . . . . . . 1 . Retrieve Matter 3 | . . . . . 3 . . . . . . . . . . . . . . . . Retrieve Components 1 | . . . . . 1 . . . . . . . . . . . . . . . . Scanalyzer 15 | . . 7 2 . . . . . . . . . 6 . . . . . . . . Insert Component 7 | . . 3 1 . . . . . . . . . 3 . . . . . . . . Analyze 6 | . . 3 1 . . . . . . . . . 2 . . . . . . . . Retrieve Study 2 | . . 1 . . . . . . . . . . 1 . . . . . . . . Garrison Access Hacks 5 | . . . 1 1 1 . . 2 . . . . . . . . . . . . . Seal Access 5 | . . . 1 1 1 . . 2 . . . . . . . . . . . . . Unauthorized Hacks 57 | . 9 10 10 4 7 3 . 1 . . . . 7 . 1 . . . . 2 3 Terminals 49 | . 9 10 10 3 4 2 . . . . . . 6 . . . . . . 2 3 Track 5 | . . . . . . . . . . . . . 2 . . . . . . 2 1 Assimilate 4 | . . . 2 . 2 . . . . . . . . . . . . . . . . Botnet 14 | . 3 3 2 3 2 . . . . . . . . . . . . . . . 1 Disrupt 1 | . . 1 . . . . . . . . . . . . . . . . . . . Operators 4 | . . 1 1 . . 1 . . . . . . . . . . . . . . 1 Skim 21 | . 6 5 5 . . 1 . . . . . . 4 . . . . . . . . Fabricators 4 | . . . . . 2 1 . . . . . . . . 1 . . . . . . Prioritize 1 | . . . . . 1 . . . . . . . . . . . . . . . . Haulers 1 | . . . . . 1 . . . . . . . . . . . . . . . . Recompile 2 | . . . . . . 1 . . . . . . . . 1 . . . . . . Repair Stations 2 | . . . . 1 . . . . . . . . 1 . . . . . . . . Patch 2 | . . . . 1 . . . . . . . . 1 . . . . . . . . Recycling Units 2 | . . . . . 1 . . 1 . . . . . . . . . . . . . Recyclers 2 | . . . . . 1 . . 1 . . . . . . . . . . . . . Scanalyzers . | . . . . . . . . . . . . . . . . . . . . . . Garrison Access . | . . . . . . . . . . . . . . . . . . . . . . Data Cores Recovered . | . . . . . . . . . . . . . . . . . . . . . . Used . | . . . . . . . . . . . . . . . . . . . . . . Hacking Detections 81 | . 5 7 12 18 12 2 . 4 . . . . 8 . 1 . . . . 7 5 Full Trace Events 6 | . 1 . . 3 . . . 1 . . . . . . . . . . . . 1 Feedback Events . | . . . . . . . . . . . . . . . . . . . . . . Feedback Blocked . | . . . . . . . . . . . . . . . . . . . . . . Robot Schematics Acquired 2 | . . . . . . . . . . . . . . . . . . . . . 2 Robots Built 5 | . . . . . . . . . . . . . 2 . . . . . . 3 . Authchips . | . . . . . . . . . . . . . . . . . . . . . . Time 161 | . . . . . . . . . . . . . 93 . . . . . . 68 . Total Robot Build Rating 38 | . . . . . . . . . . . . . 14 . . . . . . 24 . Part Schematics Acquired 13 | . . 3 1 . . 1 . . . . 4 . 2 . . . . . . . 2 Parts Built 6 | . . . . 1 3 . . 2 . . . . . . . . . . . . . Authchips . | . . . . . . . . . . . . . . . . . . . . . . Time 467 | . . . . 164 245 . . 58 . . . . . . . . . . . . . Total Part Build Rating 39 | . . . . 3 22 . . 14 . . . . . . . . . . . . . Part Studies Acquired 2 | . . 1 . . . . . . . . . . 1 . . . . . . . . Parts Repaired 8 | . . . 4 3 . . . . . . . . 1 . . . . . . . . Time 247 | . . . 128 79 . . . . . . . . 40 . . . . . . . . Parts Recycled 3 | . . . . . 3 . . . . . . . . . . . . . . . . Recycled Matter 267 | . . . . . 267 . . . . . . . . . . . . . . . . Retrieved Matter 267 | . . . . . 267 . . . . . . . . . . . . . . . . Retrieved Components 2 | . . . . . 2 . . . . . . . . . . . . . . . . Parts Scanalyzed 6 | . . 3 1 . . . . . . . . . 2 . . . . . . . . Part Schematics Acquired 6 | . . 3 1 . . . . . . . . . 2 . . . . . . . . Parts Damaged . | . . . . . . . . . . . . . . . . . . . . . . Bothacking | -11 -10 -9 -8 -7 -6 -5 -5 -5 -5 -5 -5 -4 -4 -4 -4 -4 -4 -4 -3 -3 -3 ------------ Run | Yrd Mat Mat Mat Fac Fac Fac Was Fac Upp Upp Zhi Pro Fac Was Fac Upp Upp War Pro Res Tes Used RIF Installer . | . . . . . . . . . . . . . . . . . . . . . . Robots Hacked . | . . . . . . . . . . . . . . . . . . . . . . Non-combat . | . . . . . . . . . . . . . . . . . . . . . . Combat . | . . . . . . . . . . . . . . . . . . . . . . Robot Hacks Applied . | . . . . . . . . . . . . . . . . . . . . . . Relay Couplers Released 2 | . . . . . . . . 2 . . . . . . . . . . . . . Machine Destruction 2 | . . . . . . . . 2 . . . . . . . . . . . . . Fabnet Peak Effective % . | . . . . . . . . . . . . . . . . . . . . . . Robots Rewired 2 | . . . . . 2 . . . . . . . . . . . . . . . . Allies Hacked . | . . . . . . . . . . . . . . . . . . . . . . Hacks Repelled 1 | . . . . . . . . . . . . . . . . . . 1 . . . Allies | -11 -10 -9 -8 -7 -6 -5 -5 -5 -5 -5 -5 -4 -4 -4 -4 -4 -4 -4 -3 -3 -3 -------- Run | Yrd Mat Mat Mat Fac Fac Fac Was Fac Upp Upp Zhi Pro Fac Was Fac Upp Upp War Pro Res Tes Total Allies 47 | . . . 1 . 3 . 19 . . . . . 2 19 . . . . . 3 . Largest Group 19 | . . . 1 . 2 . 19 15 . . . . 2 19 1 . . . . 3 . Highest-Rated Group 702 | . . . 10 . 41 . 702 602 . . . . 112 702 25 . . . . 126 . Highest-Rated Ally 56 | . . . 10 . 29 . 50 50 . . . . 56 50 25 . . . . 42 . Total Orders 1 | . . . . . 1 . . . . . . . . . . . . . . . . STAY 1 | . . . . . 1 . . . . . . . . . . . . . . . . Ally Attacks 303 | . . . . . 13 . 83 112 . . . . 4 84 1 . . . . 6 . Total Damage 10937 | . . . . . 178 . 2630 4418 . . . . 135 3422 . . . . . 154 . Kills 36 | . . . . . 1 . 4 24 . . . . 1 6 . . . . . . . Allies Corrupted 1 | . . . . . . . . . . . . . . . . . . . . 1 . Allies Melted 2 | . . . . . . . . 2 . . . . . . . . . . . . . Intel | -11 -10 -9 -8 -7 -6 -5 -5 -5 -5 -5 -5 -4 -4 -4 -4 -4 -4 -4 -3 -3 -3 ------- Run | Yrd Mat Mat Mat Fac Fac Fac Was Fac Upp Upp Zhi Pro Fac Was Fac Upp Upp War Pro Res Tes Active Infowar (turns) 11718 | . . 791 2121 3644 779 154 282 393 186 127 111 143 651 129 151 258 83 468 188 529 530 Optics 3920 | . . . . . . . . 366 186 127 111 143 651 129 151 258 83 468 188 529 530 Sensors 5479 | . . . . 2301 598 154 282 393 186 127 54 52 623 129 151 258 83 88 . . . IFF 225 | . . . . . . . . . . . . . . . . . . . 111 114 . Structural 988 | . . . . . . . . . . . . . 223 117 20 258 83 287 . . . Seismic 6427 | . . 438 2121 3543 . . . . . . . . . . . . . . . 24 301 T.N.C. 2760 | . . 353 . . . . . . . . . . 71 129 151 258 83 468 188 529 530 Cloaking 980 | . . . . . 253 141 . 48 1 . 15 100 384 1 2 12 4 9 4 6 . ECM 29 | . . . . 1 . . . . . 2 1 . 25 . . . . . . . . Robot Analysis Total 8 | . 1 1 1 . . . . . . . 4 . . . 1 . . . . . . Derelict Logs Recovered 5 | . . . . . . . . . 1 1 . 2 . . . 1 . . . . . Drone Launches . | . . . . . . . . . . . . . . . . . . . . . . Drone Recoveries . | . . . . . . . . . . . . . . . . . . . . . . Exploration | -11 -10 -9 -8 -7 -6 -5 -5 -5 -5 -5 -5 -4 -4 -4 -4 -4 -4 -4 -3 -3 -3 ------------- Run | Yrd Mat Mat Mat Fac Fac Fac Was Fac Upp Upp Zhi Pro Fac Was Fac Upp Upp War Pro Res Tes Turns Passed 15574 | 127 1673 1311 2785 3882 1363 204 282 393 186 127 111 143 651 129 151 258 83 468 188 529 530 Spaces Moved 15450 | 65 827 709 1426 2036 2233 369 336 711 429 317 166 340 1286 272 337 672 228 683 462 1147 399 Core 2064 | 11 . . . 46 1715 . 4 . . . 44 147 . . . . . . 24 5 68 Treads . | . . . . . . . . . . . . . . . . . . . . . . Legs 1024 | 54 827 141 . . 2 . . . . . . . . . . . . . . . . Wheels 4103 | . . 568 1426 1990 . . . . . . . . . . . . . . . . 119 Hover 109 | . . . . . 51 . 58 . . . . . . . . . . . . . . Flight 8150 | . . . . . 465 369 274 711 429 317 122 193 1286 272 337 672 228 683 438 1142 212 Fastest Speed 26 | 50 120 95 130 50 35 35 34 34 35 34 32 32 32 32 32 32 32 32 32 26 26 Average Speed 74 | 108 164 137 145 146 49 35 57 34 35 36 42 41 32 36 32 32 32 39 32 32 68 Slowest Speed 522 | 120 190 190 235 225 100 105 160 40 35 40 105 200 102 172 32 32 32 102 50 245 522 Overloaded Moves 46 | . . . . . . . . . . . . . . . . . . . . 38 8 Propulsion Burnouts . | . . . . . . . . . . . . . . . . . . . . . . Robots Hopped 49 | . . . . . 1 . . 3 . . . 1 1 . . 1 . 2 . 38 2 Potential Cave-ins 4 | . . . . . . . . . . . . . . . . . . . . 4 . Cave-ins Triggered . | . . . . . . . . . . . . . . . . . . . . . . Teleports 1 | . . . . . . . . . . . . . . . . . . . . . 1 Exploration Rate (%) 52 | 4 86 61 87 50 39 6 88 22 59 54 61 69 33 90 11 87 51 66 63 46 32 Regions Visited 21 Branch Regions 9 Pre-discovered Areas 10 | . . 6 1 . . . . . . . 3 . . . . . . . . . . Known Exits Taken 16 | . 1 1 1 1 1 . . 1 1 1 1 1 . . 1 1 1 1 1 1 . Unknown Exits Taken 1 | 1 . . . . . . . . . . . . . . . . . . . . . Scrap Searched 12 | . . . . . . . . . 3 1 . . . . . 3 2 . 3 . . Spaces Dug 246 | . 7 . 11 . 19 4 71 12 6 . . . 17 . 9 4 3 . . 17 66 Terrain Destroyed 813 | . 39 17 97 77 19 68 205 12 6 . . . 17 . 9 4 3 . . 22 218 Melee 74 | . . . . . 19 4 . 12 6 . . . 17 . 9 4 3 . . . . Projectile 60 | . . . . 5 . . . . . . . . . . . . . . . 22 33 AOE 679 | . 39 17 97 72 . 64 205 . . . . . . . . . . . . . 185 Terrain Rammed . | . . . . . . . . . . . . . . . . . . . . . . Walls Destroyed . | . . . . . . . . . . . . . . . . . . . . . . Machines Disabled . | . . . . . . . . . . . . . . . . . . . . . . Actions | -11 -10 -9 -8 -7 -6 -5 -5 -5 -5 -5 -5 -4 -4 -4 -4 -4 -4 -4 -3 -3 -3 --------- Run | Yrd Mat Mat Mat Fac Fac Fac Was Fac Upp Upp Zhi Pro Fac Was Fac Upp Upp War Pro Res Tes Total 18270 | 90 978 1025 1938 2584 2438 419 415 820 449 324 206 338 1451 302 358 702 232 870 497 1228 606 Wait 1308 | . 3 223 296 136 54 21 55 75 11 . 20 . 93 23 3 21 . 110 30 55 79 Move 15341 | 64 826 708 1425 2035 2230 369 335 704 428 316 165 337 1284 271 336 669 227 679 461 1077 395 Hop 41 | . . . . . 1 . . 3 . . . 1 1 . . 1 . 1 . 31 2 Pick Up 146 | 6 18 20 25 32 19 1 1 2 . . 2 . 2 1 1 2 . 5 . . 9 Fast Attach 182 | 6 4 11 11 28 33 5 4 6 1 3 8 . 11 2 1 . 1 12 3 16 16 Attach 74 | . 1 3 5 18 10 4 1 . . . . . 3 1 1 . . 6 . 4 17 Detach 70 | . 3 10 2 6 10 4 1 1 . . 1 . 4 . 1 . . 10 1 4 12 Swap 127 | . 16 12 32 42 2 2 . 2 . . 2 . 5 1 . 1 . 7 . . 3 Drop 232 | . 18 21 29 43 34 2 6 10 1 2 8 . 5 3 1 1 1 23 2 10 12 Fire 548 | 14 79 17 112 227 . 1 12 . . . . . . . . . . 17 . 31 38 Melee 139 | . . . . . 34 10 . 17 8 3 . . 43 . 14 7 3 . . . . Ram 13 | . . . 1 9 3 . . . . . . . . . . . . . . . . Kick 10 | . 10 . . . . . . . . . . . . . . . . . . . . Crush . | . . . . . . . . . . . . . . . . . . . . . . Escape Stasis 31 | . . . . 8 . . . . . . . . . . . . . . . . 23 Rewire 8 | . . . . . 8 . . . . . . . . . . . . . . . . Trap . | . . . . . . . . . . . . . . . . . . . . . . Miscellaneous . | . . . . . . . . . . . . . . . . . . . . . . Route ------- -11/Scrapyard -10/Materials (discovered 5 exits: *Mat x3 / Min / [*Sub]) -9/Materials (discovered 5 exits: *Mat x3 / [*Min x2]) -8/Materials (discovered 3 exits: *Fac x3) -7/Factory (discovered 7 exits: *Fac x3 / *Sto x2 / *Low x2) -6/Factory (discovered 3 exits: *Fac / *Low x2) -5/Factory (discovered 4 exits: Upp x2 / Ext x2) -5/Waste -5/Factory -5/Upper Caves -5/Upper Caves -5/Zhirov -4/Proximity Caves -4/Factory (discovered 6 exits: *Res x4 / Upp x2) -4/Waste -4/Factory (discovered 2 exits: *Upp x2) -4/Upper Caves -4/Upper Caves (discovered 2 exits: *Res / *War) -4/Warlord -3/Proximity Caves -3/Research (discovered 5 exits: *Res x2 / *Arm / *Tes x2) -3/Testing History --------- Turn | Location | Event 8 | -11/Scrapyard | Discovered new exit (range 15) 128 | -11/Scrapyard | Entered Materials 291 | -10/Materials | Destroyed 9 combat bots 302 | -10/Materials | Discovered new exit (range 5) 303 | -10/Materials | Build established: Mutant 945 | -10/Materials | Discovered new exit (range 3) 1335 | -10/Materials | Discovered new exit (range 13) 1485 | -10/Materials | Learned Storage interactive machine intel 1505 | -10/Materials | Learned 4 Recycling zone layouts 1514 | -10/Materials | Identified exit to Materials 1515 | -10/Materials | Learned location of 1 exit from Storage 1516 | -10/Materials | Identified exit to Mines 1517 | -10/Materials | Learned Storage trap positions 1537 | -10/Materials | Learned 2 Materials zone layouts 1801 | -10/Materials | Entered another Materials area 1801 | -9/Materials | Evolved 2 slots: Utility x2 2221 | -9/Materials | Discovered new exit (range 9) 2331 | -9/Materials | Discovered new exit (range 3) 2630 | -9/Materials | Build established: Scavenger-Mutant 2756 | -9/Materials | Discovered new exit (range 16) 2868 | -9/Materials | Discovered new exit (range 13) 2892 | -9/Materials | Learned location of Zion (-7) 2960 | -9/Materials | Identified exit to Materials 2960 | -9/Materials | Build established: Mutant 3112 | -9/Materials | Entered another Materials area 3112 | -8/Materials | Evolved 2 slots: Utility x2 3205 | -8/Materials | Garrison activated, responded to threat 3229 | -8/Materials | Destroyed 8 combat bots 3616 | -8/Materials | Repaired Cooling System 3675 | -8/Materials | Discovered new exit (range 16) 3927 | -8/Materials | Central database locked down 4314 | -8/Materials | Repaired Hvy. Armor Plating 4528 | -8/Materials | Identified exit to Factory 4607 | -8/Materials | Learned Storage security intel 4646 | -8/Materials | Learned Storage trap positions 4673 | -8/Materials | Learned location of 1 exit from Recycling 4709 | -8/Materials | Learned Storage trap positions 5820 | -8/Materials | Repaired Wheel+ 5854 | -8/Materials | Repaired Shield Generator 5897 | -8/Materials | Entered Factory 5897 | -7/Factory | Evolved 2 slots: Utility x2 5975 | -7/Factory | Fabricated Enh. Autogun (x1) 6415 | -7/Factory | Discovered new exit (range 15) 6460 | -7/Factory | Identified exit to Storage 6543 | -7/Factory | Repaired Shield Generator 6601 | -7/Factory | Discovered new exit (range 9) 6611 | -7/Factory | Identified exit to Factory 6846 | -7/Factory | Discovered new exit (range 15) 6869 | -7/Factory | Identified exit to Lower Caves 7004 | -7/Factory | Repaired Cld. Ion Engine 7720 | -7/Factory | Discovered exit to Storage (range 8) 8913 | -7/Factory | Discovered exit to Factory (range 7) 8954 | -7/Factory | Build established: Scavenger-Mutant 9162 | -7/Factory | Assembled infested ambush trap array 9173 | -7/Factory | System corruption reached 10% 9258 | -7/Factory | Destroyed 10 combat bots 9262 | -7/Factory | Lost 7 parts (1p2n3u1w) 9396 | -7/Factory | Build established: Mutant 9497 | -7/Factory | First assault squad dispatched 9636 | -7/Factory | Repaired Flak Cannon? 9652 | -7/Factory | Core integrity fell below 50% 9747 | -7/Factory | Released all parts (12) 9754 | -7/Factory | Discovered exit to Factory (range 15) 9755 | -7/Factory | Assembled infested ambush trap array 9779 | -7/Factory | Entered another Factory area 9779 | -6/Factory | Evolved 2 slots: Utility x2 9830 | -6/Factory | Allied Derelicts emerged from ambush trap array 9864 | -6/Factory | Identified exit to Lower Caves 10168 | -6/Factory | Build established: Hacker-Mutant 10197 | -6/Factory | Fabricated Centrium Wheel? 10350 | -6/Factory | Found Launcher Loader 10769 | -6/Factory | Spotted B-75 Beast 10851 | -6/Factory | Fabricated Fusion Bomb Launcher? 10934 | -6/Factory | Discovered new exit (range 4) 10934 | -6/Factory | Identified exit to Factory 11142 | -6/Factory | Entered another Factory area 11142 | -5/Factory | Evolved 2 slots: Utility x2 11143 | -5/Factory | Identified exit to Extension 11244 | -5/Factory | Identified exit to Upper Caves 11346 | -5/Factory | Sucked down chute 11346 | -5/Factory | Entered Waste 11352 | -5/Waste | Found Prototype Launcher 11352 | -5/Waste | Identified Point Singularity Launcher 11357 | -5/Waste | Warlord forces began an assault 11361 | -5/Waste | Spotted C-40 Crusher 11368 | -5/Waste | Destroyed C-40 Crusher 11431 | -5/Waste | Spotted C-40 Crusher 11438 | -5/Waste | Destroyed C-40 Crusher 11447 | -5/Waste | Spotted C-40 Crusher 11450 | -5/Waste | Spotted C-40 Crusher 11451 | -5/Waste | Allies destroyed C-40 Crusher 11454 | -5/Waste | Destroyed C-40 Crusher 11461 | -5/Waste | Spotted C-40 Crusher 11473 | -5/Waste | Allies destroyed C-40 Crusher 11481 | -5/Waste | Lost 4 allies 11531 | -5/Waste | Discovered new exit (range 11) 11556 | -5/Waste | Identified exit to Factory 11628 | -5/Waste | Entered Factory 11628 | -5/Factory | Accompanied by 15 allies 11704 | -5/Factory | Fabricated Impulse Thruster? 11775 | -5/Factory | Garrison activated, responded to threat 11857 | -5/Factory | Lost 3 allies 11876 | -5/Factory | Spotted B-75 Beast 11956 | -5/Factory | Build established: Hacker-Ninja 11980 | -5/Factory | Discovered exit to Upper Caves (range 14) 12021 | -5/Factory | Entered Upper Caves 12056 | -5/Upper Caves | Identified exit to Upper Caves 12163 | -5/Upper Caves | Spotted B-75 Beast 12207 | -5/Upper Caves | Entered another Upper Caves area 12329 | -5/Upper Caves | Discovered new exit (range 8) 12331 | -5/Upper Caves | Learned location of 1 exit from Factory 12334 | -5/Upper Caves | Identified exit to Zhirov 12334 | -5/Upper Caves | Entered Zhirov 12334 | -5/Zhirov | Discovered new exit (range 3) 12342 | -5/Zhirov | Met Zhirov 12349 | -5/Zhirov | Learned location of Quarantine (-2) 12349 | -5/Zhirov | Learned location of Testing (-3) 12349 | -5/Zhirov | Learned location of Command (-1) 12353 | -5/Zhirov | Zhirov requested help retrieving the SGEMP Prototype 12360 | -5/Zhirov | Found Alien Artifact 12360 | -5/Zhirov | Identified Integrated Dissipator 12360 | -5/Zhirov | Installed Integrated Dissipator, increased core heat dissipation (+20) 12413 | -5/Zhirov | Found Alien Artifact 12445 | -5/Zhirov | Identified exit to Proximity Caves 12445 | -5/Zhirov | Entered Proximity Caves 12447 | -4/Proximity Caves | Learned Research stockpile data 12481 | -4/Proximity Caves | Identified exit to Factory 12557 | -4/Proximity Caves | Spotted B-86 Titan 12574 | -4/Proximity Caves | Lost 3 parts (3u) 12588 | -4/Proximity Caves | Entered Factory 12588 | -4/Factory | Evolved 2 slots: Utility x2 12589 | -4/Factory | Identified exit to Research 12628 | -4/Factory | Identified Transdimensional Reconstructor 12644 | -4/Factory | Spotted B-86 Titan 12837 | -4/Factory | Identified exit to Upper Caves 12976 | -4/Factory | Allied Derelicts emerged from ambush trap array 12997 | -4/Factory | Repaired Exp. Propulsion Shielding 13138 | -4/Factory | Fabricated H-77 Assassin? 13239 | -4/Factory | Sucked down chute 13239 | -4/Factory | Entered Waste 13244 | -4/Waste | Spotted C-40 Crusher 13261 | -4/Waste | Spotted C-40 Crusher 13291 | -4/Waste | Spotted C-40 Crusher 13293 | -4/Waste | Build established: Hacker-Scout 13300 | -4/Waste | Spotted C-40 Crusher 13305 | -4/Waste | Warlord forces began an assault 13336 | -4/Waste | Spotted C-40 Crusher 13345 | -4/Waste | Discovered new exit (range 10) 13368 | -4/Waste | Identified exit to Factory 13368 | -4/Waste | Entered Factory 13368 | -4/Factory | Accompanied by 1 ally 13489 | -4/Factory | Unchained authorized (DW-4LL) 13519 | -4/Factory | Entered Upper Caves 13550 | -4/Upper Caves | Attracted the attention of an 0b10 checkpoint 13606 | -4/Upper Caves | Spotted B-86 Titan 13661 | -4/Upper Caves | Build established: Hacker-Ninja 13720 | -4/Upper Caves | Unchained authorized (DW-4LL) 13771 | -4/Upper Caves | Discovered new exit (range 20) 13776 | -4/Upper Caves | Identified exit to Upper Caves 13777 | -4/Upper Caves | Entered another Upper Caves area 13778 | -4/Upper Caves | Discovered exit to Research (range 11) 13814 | -4/Upper Caves | Spotted B-86 Titan 13840 | -4/Upper Caves | Discovered new exit (range 9) 13859 | -4/Upper Caves | Identified exit to Warlord 13860 | -4/Upper Caves | Entered Warlord 13868 | -4/Warlord | Discovered new exit (range 16) 13911 | -4/Warlord | Visited the Vortex Lab 13916 | -4/Warlord | Found Prototype Launcher 13916 | -4/Warlord | Identified Vortex Catalyst Activator 13918 | -4/Warlord | Found Prototype Energy Gun 13918 | -4/Warlord | Identified Vortex Rail 13921 | -4/Warlord | Found Prototype Energy Cannon 13921 | -4/Warlord | Identified Vortex Cannon 13923 | -4/Warlord | Found Vortex Rail 13933 | -4/Warlord | Warlord's base attacked by MAIN.C 14061 | -4/Warlord | Found Vortex Cannon 14178 | -4/Warlord | Warlord forces counterattacked 14195 | -4/Warlord | Lost 5 allies 14273 | -4/Warlord | Spotted Striker 14321 | -4/Warlord | Spotted Executioner 14328 | -4/Warlord | Identified exit to Proximity Caves 14328 | -4/Warlord | Entered Proximity Caves 14344 | -3/Proximity Caves | Lost 12 allies 14448 | -3/Proximity Caves | Build established: Hacker-Sprinter 14468 | -3/Proximity Caves | Discovered exit to Research (range 12) 14516 | -3/Proximity Caves | Entered Research 14516 | -3/Research | Evolved 2 slots: Utility x2 14517 | -3/Research | Identified exit to Armory 14662 | -3/Research | Fabricated B-74 Champion? 14704 | -3/Research | Discovered new exit (range 22) 14705 | -3/Research | Spotted B-86 Titan 14802 | -3/Research | Discovered new exit (range 15) 14806 | -3/Research | Identified exit to Research 14813 | -3/Research | Identified exit to Testing 14928 | -3/Research | Spotted B-86 Titan 14942 | -3/Research | Spotted B-86 Titan 14949 | -3/Research | Discovered exit to Research (range 12) 15016 | -3/Research | Search patrols dispatched 15045 | -3/Research | Entered Testing 15046 | -3/Testing | Spotted PP-G411GZ8T8N 15052 | -3/Testing | Protovariant out of control (PP-G411GZ8T8N) 15052 | -3/Testing | Unleashed a protovariant (PP-G411GZ8T8N) 15100 | -3/Testing | Found Prototype Energy Cannon 15100 | -3/Testing | Identified Potential Cannon 15122 | -3/Testing | Spotted Investigator 15137 | -3/Testing | Destroyed Investigator 15147 | -3/Testing | PP-G411GZ8T8N assimilated allied G-67 Veteran 15157 | -3/Testing | Lost 3 parts (2u1w) 15163 | -3/Testing | PP-G411GZ8T8N assimilated allied R-10 Processor 15175 | -3/Testing | Scanned by Researcher 15195 | -3/Testing | Found Prototype Protection 15195 | -3/Testing | Identified Lgt. Regenerative Plating 15197 | -3/Testing | Found Prototype Protection 15197 | -3/Testing | Identified SHELL Armor 15205 | -3/Testing | Found Prototype Protection 15205 | -3/Testing | Identified Med. Regenerative Plating 15207 | -3/Testing | Found Med. Regenerative Plating 15209 | -3/Testing | Warped through subspace 15210 | -3/Testing | Core integrity fell below 50% 15348 | -3/Testing | Found Potential Cannon 15475 | -3/Testing | Lost 6 parts (1p3n1u1w) 15521 | -3/Testing | Core integrity fell below 20% 15524 | -3/Testing | Build established: Hacker-Mutant 15551 | -3/Testing | Lost 6 parts (1p5u) 15575 | -3/Testing | Destroyed by H-77 Assassin with High-powered Shotgun Last Messages --------------- 15520_ Adv. Melee Analysis Suite destroyed. 15520_ U-05 Engineer lays Concrete. 15521_ Slug penetrates Wall. 15522_ U-05 Engineer lays Concrete. 15523_ Slug penetrates Wall. 15523_ U-05 Engineer lays Concrete. 15524_ Slug penetrates Wall. 15524_ U-05 Engineer lays Concrete. 15529_ Slug penetrates Wall. 15529_ Slug penetrates Potential Refractor. 15529_ Slug penetrates Wall. 15529_ Acquired Biometal Leg. 15534_ Slug penetrates Wall. 15534_ U-05 Engineer lays Concrete. 15534_ Slug penetrates Potential Refractor. 15541_ Penetrated by Slug. 15568_ Slug penetrates Wall. 15570_ Quantum Generator explodes. 15570_ G-67 Veteran destroyed. 15572_ Slug penetrates Wall. Map ----- +----------------------------------------------------+ | | | | | | | | | | | | | | | | | | | | | | | | | | | | | | | | | | | | | | | ?????????????????????????????????????????????????? | | ?????????????????????????????????????????????????? | | ?????????????????????????????????????????????????? | | ?????????????????????????????????????????????????? | | ?????????????????????????????????????????????????? | | ?????????????????????##########??????????????????? | | ?????????????????????#! @ #??????????????????? | | ?????????????????????# #?????????????????? | | ?????????????######### #????????????????? | | ?????????????#"""""""# #???????????????? | | ?????????????# """"" # #???????????????? | | ?????????????# """" # #???????????????? | | ?????????????#" " "" # #???????????????? | | ?????????????# # #???????????????? | | ?????????????# # ! #???????????????? | | ?????????????######+## [%[ #???????????????? | | ???????????????# h = = #???????????????? | | ???????????????# [h![ #???????????????? | | ???????????????# g ###???????????????? | | ???????????????# ##?????????????????? | | ???????????????####+###### #??????????????????? | | ???????????????# ## #??????????????????? | | ???????????????# """ ""## #??????????????????? | | ???????????????# """ ""## #######????????????? | | ??????????????## """ ""## # #????????????? | | ??????????????#" T## # "" #?###????????? | | ??????????????#T """ ""## # """ ### ####?????? | | ??????????????#" """ ""## # S" # #?????? | | ??????????????## """ ""## # """ # # ########## | | ???????????????# ## # """ # | | ???????????????##### ### + [ ##### | +----------------------------------------------------+ Best States ------------- Heat Dissipation 66 Energy Generation 23 Energy Capacity 1250 Matter Stores 300 Matter Capacity 300 Sight Range 22 Robot Scan Range 18 Terrain Scan Density 85 ECM Strength 2 Cloak Strength 4 Additional Mass Support 12 Armor Coverage 1500 Resistance: KI 20 Propulsion Shielding 90 Evasion (%) 73 Targeting Accuracy 16 Melee Accuracy 28 Target Analysis 6 Core Analysis 6 Recoil Reduction 2 Matter Filtering 50 Offensive Hacking 46 Defensive Hacking 14 Authchip Count 1 Item Schematics ----------------- Cooling System | -9/Materials | Scanalyzed Hvy. Armor Plating | -9/Materials | Scanalyzed Lgt. EM Pulse Cannon | -9/Materials | Scanalyzed Enh. Autogun | -8/Materials | Scanalyzed Impulse Thruster | -5/Factory | Hacked Assault Drone Bay | -5/Zhirov | Free Exp. Optical Array | -5/Zhirov | Free Imp. Arc Thrower | -5/Zhirov | Free Exp. Heat Sink | -5/Zhirov | Free Lrn. Tractor Beam | -4/Factory | Scanalyzed Lrn. Sensor Array | -4/Factory | Scanalyzed Helical Railgun | -3/Testing | Archive Coolant Network | -3/Testing | Archive Robot Schematics ------------------ A-27 Freighter | -3/Testing | Archive A-02 Transporter | -3/Testing | Archive Fabricated ------------ Enh. Autogun | x1 | -7/Factory Centrium Wheel | x2 | -6/Factory | Preloaded Fusion Bomb Launcher | x1 | -6/Factory | Preloaded Impulse Thruster | x2 | -5/Factory H-77 Assassin | x2 | -4/Factory | Preloaded B-74 Champion | x3 | -3/Research | Preloaded Repaired ---------- Cooling System | 30% | -8/Materials Hvy. Armor Plating | 61% | -8/Materials Wheel | 55% | -8/Materials Shield Generator | 70% | -8/Materials Shield Generator | 23% | -7/Factory Cld. Ion Engine | 67% | -7/Factory Flak Cannon | 29% | -7/Factory Exp. Propulsion Shielding | 72% | -4/Factory Studied --------- Wheel | -9/Materials | Hacked Mic. Fission Core | -4/Factory | Hacked Alien Tech Used ----------------- Integrated Dissipator Transdimensional Reconstructor Achievements -------------- All Kinds Of Bad News Hackathon Infodabbler Into The Breach Rampage Tailor-made The Better Part Of Valor Challenges ------------ None Game ------ Seed FieldArcsightChainsword Manual? 0 Play Time 02:53:34 Cumulative 266.6 hours Start 2025.11.03 @ 15:40:31 End 2025.11.03 @ 22:39:12 Sessions 9 Manual Loads 0 Difficulty Rogue Special Mode None Game No. 293 Rogue 293 Adventurer 0 Explorer 0 Win Type - Total 3 Types 3/0/0/0/0/0/0/0/0/0 Lore% 76 Gallery% 71 Achievement% 50 Wizard Run 0 Options --------- Layout 0 ASCII 1 Keyboard 1 Movement Vi Keybinds 0 Fullscreen 2 Font 18/T_Terminus Map View 76x50 Zoom Use 0% Tactical HUD 1 Map Filters NONE Filters NONE Steam 1 RUN: e3d2effa-302e-46c8-9c11-1cd114e81f00